[Event "Live Chess"]
[Site "Chess.com"]
[Date "2024.06.02"]
[Round "-"]
[White "WelshTiger"]
[Black "gobbles19"]
[Result "1/2-1/2"]
[WhiteElo "2466"]
[BlackElo "2266"]
[TimeControl "300"]
[EndTime "17:24:08 PDT"]
[Termination "Game drawn by repetition"]

1. e4 {[%clk 0:04:57.1]} 1... d6 {[%clk 0:04:58.2]} 2. d4 {[%clk 0:04:56]} 2...
Nf6 {[%clk 0:04:57.9]} 3. Nc3 {[%clk 0:04:54.7]} 3... g6 {[%clk 0:04:57.4]} 4.
f4 {[%clk 0:04:53.9]} 4... Bg7 {[%clk 0:04:56.9]} 5. Nf3 {[%clk 0:04:53.2]} 5...
O-O {[%clk 0:04:56.4]} 6. Bd3 {[%clk 0:04:51.3]} 6... Na6 {[%clk 0:04:55.5]} 7.
O-O {[%clk 0:04:39.4]} 7... c5 {[%clk 0:04:54]} 8. d5 {[%clk 0:04:35.3]} 8...
Nc7 {[%clk 0:04:52.9]} 9. Bc4 {[%clk 0:04:30.7]} 9... b5 {[%clk 0:04:49.4]} 10.
Nxb5 {[%clk 0:04:26]} 10... Nxb5 {[%clk 0:04:47.2]} 11. Bxb5 {[%clk 0:04:24.8]}
11... Nxe4 {[%clk 0:04:46.9]} 12. c3 {[%clk 0:04:17.6]} 12... Rb8 {[%clk
0:04:43.5]} 13. Bc4 {[%clk 0:04:14.8]} 13... Nf6 {[%clk 0:04:17.2]} 14. Qe2
{[%clk 0:04:10.1]} 14... Nd7 {[%clk 0:04:11.1]} 15. Re1 {[%clk 0:04:05.6]} 15...
Re8 {[%clk 0:04:09.9]} 16. h4 {[%clk 0:03:58.3]} 16... Nb6 {[%clk 0:04:05.4]}
17. h5 {[%clk 0:03:53.6]} 17... Nxc4 {[%clk 0:04:01.9]} 18. Qxc4 {[%clk
0:03:52.7]} 18... Bg4 {[%clk 0:04:00.6]} 19. hxg6 {[%clk 0:03:49.3]} 19... hxg6
{[%clk 0:04:00.5]} 20. Ng5 {[%clk 0:03:45.1]} 20... Qd7 {[%clk 0:03:50.2]} 21.
Qe4 {[%clk 0:03:29.5]} 21... Bf6 {[%clk 0:03:40.8]} 22. Ne6 {[%clk 0:03:11.8]}
22... Bf5 {[%clk 0:03:30.3]} 23. Qe2 {[%clk 0:03:08.9]} 23... fxe6 {[%clk
0:03:26.6]} 24. dxe6 {[%clk 0:03:08.1]} 24... Qc6 {[%clk 0:03:22.4]} 25. g4
{[%clk 0:03:07.1]} 25... Bh4 {[%clk 0:03:09]} 26. gxf5 {[%clk 0:03:01.8]} 26...
Qd5 {[%clk 0:02:49.9]} 27. Qg4 {[%clk 0:02:51.5]} 27... Bxe1 {[%clk 0:02:48.5]}
28. Qxg6+ {[%clk 0:02:50]} 28... Kh8 {[%clk 0:02:47.9]} 29. Qh6+ {[%clk
0:02:40]} 29... Kg8 {[%clk 0:02:46.7]} 30. f6 {[%clk 0:02:23.6]} 30... exf6
{[%clk 0:02:28.6]} 31. Qg6+ {[%clk 0:02:22.4]} 31... Kh8 {[%clk 0:02:26.8]} 32.
Qxf6+ {[%clk 0:02:20.8]} 32... Kg8 {[%clk 0:02:22.6]} 33. Qg6+ {[%clk
0:02:11.5]} 33... Kh8 {[%clk 0:02:21.5]} 34. Qf6+ {[%clk 0:01:58]} 34... Kg8
{[%clk 0:02:20.8]} 35. Qf7+ {[%clk 0:01:49.8]} 35... Kh8 {[%clk 0:02:20]} 36.
Qf6+ {[%clk 0:01:41.3]} 1/2-1/2

[Event "Live Chess"]
[Site "Chess.com"]
[Date "2024.06.02"]
[Round "-"]
[White "RockTroll"]
[Black "RichardABates"]
[Result "0-1"]
[WhiteElo "2204"]
[BlackElo "2329"]
[TimeControl "300"]
[EndTime "17:24:42 PDT"]
[Termination "RichardABates won by resignation"]

1. e4 {[%clk 0:04:58.5]} 1... c6 {[%clk 0:04:58.1]} 2. d4 {[%clk 0:04:56.7]}
2... d5 {[%clk 0:04:55.9]} 3. e5 {[%clk 0:04:56.2]} 3... Bf5 {[%clk 0:04:49.4]}
4. h4 {[%clk 0:04:55.8]} 4... h6 {[%clk 0:04:37]} 5. g4 {[%clk 0:04:54.2]} 5...
Bd7 {[%clk 0:04:34.1]} 6. h5 {[%clk 0:04:48.9]} 6... e6 {[%clk 0:04:31.8]} 7.
Bd3 {[%clk 0:04:47.3]} 7... c5 {[%clk 0:04:30.3]} 8. c3 {[%clk 0:04:46.3]} 8...
Nc6 {[%clk 0:04:26.8]} 9. Be3 {[%clk 0:04:43.9]} 9... Qb6 {[%clk 0:04:08.3]} 10.
Qb3 {[%clk 0:04:07.7]} 10... c4 {[%clk 0:04:01.7]} 11. Qxb6 {[%clk 0:04:06.2]}
11... axb6 {[%clk 0:04:00.8]} 12. Bc2 {[%clk 0:04:04.9]} 12... b5 {[%clk
0:03:59]} 13. b3 {[%clk 0:04:01.6]} 13... cxb3 {[%clk 0:03:36.9]} 14. Bxb3
{[%clk 0:03:59.7]} 14... Na5 {[%clk 0:03:35.8]} 15. Nd2 {[%clk 0:03:58]} 15...
b4 {[%clk 0:03:31.8]} 16. Ne2 {[%clk 0:03:41.7]} 16... bxc3 {[%clk 0:03:27.5]}
17. Nxc3 {[%clk 0:03:41]} 17... Bb4 {[%clk 0:03:26.1]} 18. Rc1 {[%clk
0:03:40.3]} 18... Rc8 {[%clk 0:03:16.5]} 19. Ndb1 {[%clk 0:03:30.4]} 19... Nxb3
{[%clk 0:03:14.1]} 20. axb3 {[%clk 0:03:28.8]} 20... Ne7 {[%clk 0:03:12.1]} 21.
Bd2 {[%clk 0:03:27.8]} 21... Nc6 {[%clk 0:03:08.9]} 22. Nb5 {[%clk 0:03:23]}
22... Ke7 {[%clk 0:02:59.6]} 23. O-O {[%clk 0:03:15.5]} 23... Bxd2 {[%clk
0:02:51.6]} 24. Nxd2 {[%clk 0:03:14.3]} 24... Nxe5 {[%clk 0:02:49.8]} 25. Rxc8
{[%clk 0:03:13.2]} 25... Rxc8 {[%clk 0:02:47.8]} 26. dxe5 {[%clk 0:02:58.3]}
26... Bxb5 {[%clk 0:02:46.1]} 27. Ra1 {[%clk 0:02:58.2]} 27... Rc3 {[%clk
0:02:30.3]} 28. Ra5 {[%clk 0:02:44.6]} 28... Bc6 {[%clk 0:02:23.1]} 29. b4
{[%clk 0:02:43.5]} 29... d4 {[%clk 0:02:17.6]} 30. b5 {[%clk 0:02:41.8]} 30...
Bd5 {[%clk 0:02:14.7]} 31. Kf1 {[%clk 0:02:36.6]} 31... d3 {[%clk 0:02:08.9]}
32. f3 {[%clk 0:02:34.8]} 32... Rc1+ {[%clk 0:01:59]} 33. Kf2 {[%clk 0:02:33.9]}
33... Rd1 {[%clk 0:01:46.3]} 34. Ke3 {[%clk 0:02:33]} 34... Re1+ {[%clk
0:01:45]} 35. Kxd3 {[%clk 0:02:31.4]} 35... Rxe5 {[%clk 0:01:43]} 36. f4 {[%clk
0:02:19.5]} 36... Re1 {[%clk 0:01:41.1]} 37. Ra8 {[%clk 0:02:09.2]} 37... f5
{[%clk 0:01:30.2]} 38. g5 {[%clk 0:02:05.2]} 38... Rh1 {[%clk 0:01:24.6]} 39.
Nc4 {[%clk 0:01:38.1]} 39... Bxc4+ {[%clk 0:01:19.2]} 40. Kxc4 {[%clk
0:01:37.1]} 40... Kd6 {[%clk 0:01:08.6]} 41. Rg8 {[%clk 0:01:32.7]} 41... Rh4
{[%clk 0:01:05]} 42. Rxg7 {[%clk 0:01:31.2]} 42... Rxf4+ {[%clk 0:01:03.4]} 43.
Kd3 {[%clk 0:01:30.8]} 43... hxg5 {[%clk 0:00:58.9]} 44. Rxg5 {[%clk 0:01:29.8]}
44... Ke5 {[%clk 0:00:50]} 45. Rg7 {[%clk 0:01:24.4]} 45... b6 {[%clk
0:00:48.9]} 46. h6 {[%clk 0:01:22.9]} 46... Rh4 {[%clk 0:00:47.4]} 47. h7 {[%clk
0:01:22.3]} 47... Rh3+ {[%clk 0:00:46.1]} 48. Ke2 {[%clk 0:01:20.3]} 48... Ke4
{[%clk 0:00:44.6]} 49. Rb7 {[%clk 0:01:12.7]} 49... e5 {[%clk 0:00:42.2]} 50.
Ra7 {[%clk 0:01:09.6]} 50... Rh2+ {[%clk 0:00:40.3]} 51. Kf1 {[%clk 0:01:08.9]}
51... Kf3 {[%clk 0:00:38.9]} 52. Ra3+ {[%clk 0:01:08]} 52... Kf4 {[%clk
0:00:37.6]} 53. Ra4+ {[%clk 0:01:07.3]} 53... e4 {[%clk 0:00:36.2]} 54. Ra7
{[%clk 0:01:06.1]} 54... Kf3 {[%clk 0:00:34.4]} 55. Ra3+ {[%clk 0:01:00.1]}
55... e3 {[%clk 0:00:32.7]} 56. Kg1 {[%clk 0:00:58.4]} 56... Rxh7 {[%clk
0:00:30.6]} 57. Ra1 {[%clk 0:00:50.9]} 57... f4 {[%clk 0:00:28.8]} 58. Re1
{[%clk 0:00:48.5]} 58... e2 {[%clk 0:00:27]} 59. Ra1 {[%clk 0:00:45.6]} 59...
Rg7+ {[%clk 0:00:26]} 60. Kh2 {[%clk 0:00:44.3]} 60... Kf2 {[%clk 0:00:24.9]}
0-1

[Event "Live Chess"]
[Site "Chess.com"]
[Date "2024.06.02"]
[Round "-"]
[White "TheSmoulderingMaster"]
[Black "stevochess11"]
[Result "1-0"]
[WhiteElo "1762"]
[BlackElo "1678"]
[TimeControl "300"]
[EndTime "17:24:47 PDT"]
[Termination "TheSmoulderingMaster won by checkmate"]

1. e4 {[%clk 0:04:57.7]} 1... c5 {[%clk 0:04:59]} 2. Nf3 {[%clk 0:04:56.4]} 2...
g6 {[%clk 0:04:57.9]} 3. d4 {[%clk 0:04:55.2]} 3... cxd4 {[%clk 0:04:56]} 4.
Nxd4 {[%clk 0:04:54.5]} 4... Nc6 {[%clk 0:04:55.3]} 5. Nc3 {[%clk 0:04:53.3]}
5... Bg7 {[%clk 0:04:53.8]} 6. Be3 {[%clk 0:04:51.5]} 6... Nf6 {[%clk
0:04:52.9]} 7. f3 {[%clk 0:04:50.3]} 7... O-O {[%clk 0:04:51.6]} 8. Qd2 {[%clk
0:04:49.2]} 8... d5 {[%clk 0:04:50.1]} 9. O-O-O {[%clk 0:04:46.5]} 9... dxe4
{[%clk 0:04:44.8]} 10. Kb1 {[%clk 0:04:43.2]} 10... exf3 {[%clk 0:04:39.4]} 11.
Nxc6 {[%clk 0:04:41.9]} 11... Qxd2 {[%clk 0:04:37.2]} 12. Nxe7+ {[%clk
0:04:40.9]} 12... Kh8 {[%clk 0:04:35.4]} 13. Rxd2 {[%clk 0:04:40]} 13... fxg2
{[%clk 0:04:15.2]} 14. Bxg2 {[%clk 0:04:38.1]} 14... Be6 {[%clk 0:04:09.2]} 15.
Bd4 {[%clk 0:04:34.4]} 15... Rad8 {[%clk 0:03:49.7]} 16. Rhd1 {[%clk 0:04:27.7]}
16... Rfe8 {[%clk 0:03:33.6]} 17. Bxf6 {[%clk 0:04:24.8]} 17... Bxf6 {[%clk
0:03:31.1]} 18. Ned5 {[%clk 0:04:24.1]} 18... Bxd5 {[%clk 0:03:26]} 19. Nxd5
{[%clk 0:04:22.4]} 19... Bg5 {[%clk 0:03:14.9]} 20. Rd3 {[%clk 0:04:21]} 20...
Re2 {[%clk 0:03:12.6]} 21. Bf3 {[%clk 0:04:14.9]} 21... Rxh2 {[%clk 0:03:11.3]}
22. a3 {[%clk 0:04:13.3]} 22... Rc8 {[%clk 0:03:07.8]} 23. Nb4 {[%clk 0:04:09]}
23... a5 {[%clk 0:03:04.7]} 24. Nd5 {[%clk 0:04:04.8]} 24... Rcxc2 {[%clk
0:03:02.4]} 25. Rb3 {[%clk 0:03:59]} 25... Rhf2 {[%clk 0:02:37.8]} 26. Be4
{[%clk 0:03:55.1]} 26... Rce2 {[%clk 0:02:30.1]} 27. Bf3 {[%clk 0:03:49.4]}
27... Rc2 {[%clk 0:02:18.6]} 28. Bg4 {[%clk 0:03:44.5]} 28... Kg7 {[%clk
0:02:07.5]} 29. Rxb7 {[%clk 0:03:40.7]} 29... Bf6 {[%clk 0:02:00.9]} 30. Nxf6
{[%clk 0:03:32.3]} 30... Kxf6 {[%clk 0:02:00.8]} 31. Bd7 {[%clk 0:03:26.1]}
31... h5 {[%clk 0:01:55.8]} 32. Be8 {[%clk 0:03:24.7]} 32... Kg7 {[%clk
0:01:30.8]} 33. Bxf7 {[%clk 0:03:21.3]} 33... Kh6 {[%clk 0:01:28.7]} 34. Rb6
{[%clk 0:03:16.5]} 34... Kg7 {[%clk 0:01:14.5]} 35. Bxg6 {[%clk 0:03:11]} 35...
Rce2 {[%clk 0:01:05.5]} 36. Bxh5 {[%clk 0:03:08.7]} 36... Re5 {[%clk 0:01:02]}
37. Bg4 {[%clk 0:03:02.9]} 37... Rg2 {[%clk 0:00:55.2]} 38. Bd7 {[%clk
0:02:59.1]} 38... Ree2 {[%clk 0:00:50.7]} 39. Rb7 {[%clk 0:02:40.4]} 39... Kf6
{[%clk 0:00:44.9]} 40. Bh3 {[%clk 0:02:30]} 40... Rh2 {[%clk 0:00:42.5]} 41.
Rd6+ {[%clk 0:02:25]} 41... Kg5 {[%clk 0:00:35.7]} 42. Rb5+ {[%clk 0:02:22.8]}
42... Kh4 {[%clk 0:00:32.2]} 43. Bd7 {[%clk 0:02:13.3]} 43... Re1+ {[%clk
0:00:21.4]} 44. Ka2 {[%clk 0:02:11.2]} 44... a4 {[%clk 0:00:17.2]} 45. Rd4+
{[%clk 0:02:09.3]} 45... Kg3 {[%clk 0:00:16.1]} 46. Rc5 {[%clk 0:02:04.9]} 46...
Rhh1 {[%clk 0:00:13.7]} 47. Rc3+ {[%clk 0:02:02.8]} 47... Kf2 {[%clk 0:00:11.7]}
48. Rd2+ {[%clk 0:01:58.6]} 48... Kf1 {[%clk 0:00:10]} 49. Rf3+ {[%clk
0:01:54.9]} 49... Kg1 {[%clk 0:00:09]} 50. Bb5 {[%clk 0:01:40.1]} 50... Rh8
{[%clk 0:00:05.2]} 51. Rg3+ {[%clk 0:01:38.8]} 51... Kh1 {[%clk 0:00:04.1]} 52.
Bc6+ {[%clk 0:01:35.9]} 52... Re4 {[%clk 0:00:02.8]} 53. Bxe4# {[%clk 0:01:34]}
1-0

[Event "Live Chess"]
[Site "Chess.com"]
[Date "2024.06.02"]
[Round "-"]
[White "GwaryTek"]
[Black "PughmanChess"]
[Result "1-0"]
[WhiteElo "1916"]
[BlackElo "1386"]
[TimeControl "300"]
[EndTime "17:25:41 PDT"]
[Termination "GwaryTek won by checkmate"]

1. d4 {[%clk 0:04:57.2]} 1... f5 {[%clk 0:04:56.8]} 2. c4 {[%clk 0:04:57.1]}
2... e6 {[%clk 0:04:54.5]} 3. Nf3 {[%clk 0:04:57]} 3... Nf6 {[%clk 0:04:53.8]}
4. h3 {[%clk 0:04:56.9]} 4... Be7 {[%clk 0:04:53.3]} 5. g4 {[%clk 0:04:56.1]}
5... O-O {[%clk 0:04:53.2]} 6. gxf5 {[%clk 0:04:54.9]} 6... exf5 {[%clk
0:04:52.2]} 7. Rg1 {[%clk 0:04:54.1]} 7... c6 {[%clk 0:04:44.4]} 8. Bh6 {[%clk
0:04:50.9]} 8... Rf7 {[%clk 0:04:41.8]} 9. Ne5 {[%clk 0:04:49.7]} 9... Qe8
{[%clk 0:04:26.3]} 10. Nxf7 {[%clk 0:04:42.3]} 10... g6 {[%clk 0:04:14.1]} 11.
Ne5 {[%clk 0:04:33.7]} 11... Ne4 {[%clk 0:04:07]} 12. Nc3 {[%clk 0:04:27.7]}
12... d6 {[%clk 0:03:55]} 13. Nf3 {[%clk 0:04:24.8]} 13... d5 {[%clk 0:03:43.8]}
14. Qd3 {[%clk 0:04:08]} 14... Nd7 {[%clk 0:03:30]} 15. cxd5 {[%clk 0:04:05.3]}
15... Bb4 {[%clk 0:03:12.3]} 16. dxc6 {[%clk 0:04:00]} 16... Nb6 {[%clk
0:03:00.2]} 17. a3 {[%clk 0:03:41.8]} 17... Bxc3+ {[%clk 0:02:56.2]} 18. bxc3
{[%clk 0:03:41.7]} 18... Qxc6 {[%clk 0:02:50.6]} 19. Bd2 {[%clk 0:03:33.3]}
19... Nc4 {[%clk 0:02:36.7]} 20. Ne5 {[%clk 0:03:20.9]} 20... Nxe5 {[%clk
0:02:33.3]} 21. dxe5 {[%clk 0:03:20.8]} 21... Be6 {[%clk 0:02:30.1]} 22. Bg2
{[%clk 0:03:15.4]} 22... Bd5 {[%clk 0:01:40.7]} 23. Rb1 {[%clk 0:02:40.6]} 23...
Rd8 {[%clk 0:01:30.7]} 24. c4 {[%clk 0:02:32.6]} 24... Qxc4 {[%clk 0:01:22.5]}
25. Qxc4 {[%clk 0:02:23.8]} 25... Bxc4 {[%clk 0:01:16]} 26. Bxe4 {[%clk
0:02:22.8]} 26... fxe4 {[%clk 0:01:15.1]} 27. Rxb7 {[%clk 0:02:19.9]} 27... Rd5
{[%clk 0:01:06.8]} 28. Bc3 {[%clk 0:02:16.5]} 28... a6 {[%clk 0:00:57.4]} 29. e6
{[%clk 0:02:06.6]} 29... Rd8 {[%clk 0:00:41.3]} 30. Rg7+ {[%clk 0:01:59.2]}
30... Kf8 {[%clk 0:00:39.6]} 31. e7+ {[%clk 0:01:58.5]} 31... Ke8 {[%clk
0:00:39]} 32. exd8=Q+ {[%clk 0:01:55.5]} 32... Kxd8 {[%clk 0:00:38.9]} 33. Kd2
{[%clk 0:01:52.6]} 33... a5 {[%clk 0:00:33.6]} 34. Rb1 {[%clk 0:01:51.8]} 34...
Kc8 {[%clk 0:00:31.2]} 35. Be5 {[%clk 0:01:48.3]} 35... Bf7 {[%clk 0:00:19]} 36.
Rxf7 {[%clk 0:01:45.1]} 36... a4 {[%clk 0:00:18]} 37. Rb8# {[%clk 0:01:42]} 1-0

[Event "Live Chess"]
[Site "Chess.com"]
[Date "2024.06.02"]
[Round "-"]
[White "ShanthamGrarks"]
[Black "dmitro74"]
[Result "1-0"]
[WhiteElo "1852"]
[BlackElo "1692"]
[TimeControl "300"]
[EndTime "17:25:42 PDT"]
[Termination "ShanthamGrarks won by resignation"]

1. d4 {[%clk 0:04:57.3]} 1... d5 {[%clk 0:04:58.2]} 2. Nc3 {[%clk 0:04:56.9]}
2... c6 {[%clk 0:04:55.9]} 3. e4 {[%clk 0:04:56.2]} 3... dxe4 {[%clk 0:04:52.7]}
4. f3 {[%clk 0:04:55.6]} 4... exf3 {[%clk 0:04:51.2]} 5. Nxf3 {[%clk 0:04:55.5]}
5... Nf6 {[%clk 0:04:50]} 6. Bc4 {[%clk 0:04:55]} 6... Bg4 {[%clk 0:04:46.9]} 7.
Bxf7+ {[%clk 0:04:51.3]} 7... Kxf7 {[%clk 0:04:43.8]} 8. Ne5+ {[%clk 0:04:50.8]}
8... Ke8 {[%clk 0:04:42]} 9. Nxg4 {[%clk 0:04:50.4]} 9... Nxg4 {[%clk
0:04:22.9]} 10. Qxg4 {[%clk 0:04:50.3]} 10... Qd7 {[%clk 0:04:21.6]} 11. Qe4
{[%clk 0:04:39.2]} 11... Na6 {[%clk 0:04:10.5]} 12. O-O {[%clk 0:04:37.1]} 12...
Nc7 {[%clk 0:03:52.8]} 13. Bf4 {[%clk 0:04:34.6]} 13... Kd8 {[%clk 0:03:47.3]}
14. Rad1 {[%clk 0:04:29.5]} 14... g6 {[%clk 0:03:43.9]} 15. Bxc7+ {[%clk
0:04:24.8]} 15... Qxc7 {[%clk 0:03:40.1]} 16. d5 {[%clk 0:04:24]} 16... Kc8
{[%clk 0:03:29.1]} 17. dxc6 {[%clk 0:04:21.6]} 17... bxc6 {[%clk 0:03:27.9]} 18.
Qe6+ {[%clk 0:04:19.2]} 18... Kb7 {[%clk 0:03:22.2]} 19. Rd7 {[%clk 0:04:17.6]}
1-0

[Event "Live Chess"]
[Site "Chess.com"]
[Date "2024.06.02"]
[Round "-"]
[White "Queensandpawns"]
[Black "Dhaydon19"]
[Result "0-1"]
[WhiteElo "2304"]
[BlackElo "2685"]
[TimeControl "300"]
[EndTime "17:26:01 PDT"]
[Termination "Dhaydon19 won by resignation"]

1. e4 {[%clk 0:04:57.2]} 1... c6 {[%clk 0:04:59.9]} 2. d4 {[%clk 0:04:56.5]}
2... d5 {[%clk 0:04:59.6]} 3. Nc3 {[%clk 0:04:56.4]} 3... dxe4 {[%clk
0:04:58.8]} 4. Nxe4 {[%clk 0:04:56.3]} 4... Nf6 {[%clk 0:04:58.2]} 5. Ng5 {[%clk
0:04:55.9]} 5... h6 {[%clk 0:04:56.8]} 6. Nxf7 {[%clk 0:04:55.6]} 6... Kxf7
{[%clk 0:04:56]} 7. Nf3 {[%clk 0:04:55.5]} 7... Nbd7 {[%clk 0:04:54.9]} 8. Bd3
{[%clk 0:04:54.6]} 8... e6 {[%clk 0:04:53]} 9. O-O {[%clk 0:04:54.2]} 9... Bd6
{[%clk 0:04:51.9]} 10. Re1 {[%clk 0:04:54.1]} 10... Re8 {[%clk 0:04:49.6]} 11.
Ne5+ {[%clk 0:04:53.6]} 11... Kg8 {[%clk 0:04:46.1]} 12. Qf3 {[%clk 0:04:52.5]}
12... Rf8 {[%clk 0:04:39.1]} 13. Bxh6 {[%clk 0:04:35.9]} 13... Nd5 {[%clk
0:04:28.8]} 14. Qe4 {[%clk 0:04:03.3]} 14... N7f6 {[%clk 0:04:20.9]} 15. Qg6
{[%clk 0:03:57.9]} 15... Qe7 {[%clk 0:04:18.3]} 16. c4 {[%clk 0:03:51.8]} 16...
Nc7 {[%clk 0:04:14.9]} 17. Bg5 {[%clk 0:03:41.8]} 17... Qe8 {[%clk 0:04:09.9]}
18. c5 {[%clk 0:02:51.3]} 18... Bxe5 {[%clk 0:04:07.3]} 19. dxe5 {[%clk
0:02:47.4]} 19... Qxg6 {[%clk 0:04:06.3]} 20. Bxg6 {[%clk 0:02:47.3]} 20... Nfd5
{[%clk 0:04:05.6]} 21. h4 {[%clk 0:02:42.2]} 21... Bd7 {[%clk 0:04:04.5]} 22. h5
{[%clk 0:02:41.6]} 22... Be8 {[%clk 0:04:03.1]} 0-1

[Event "Live Chess"]
[Site "Chess.com"]
[Date "2024.06.02"]
[Round "-"]
[White "NAZRIZ1977"]
[Black "Thebigsqueeze"]
[Result "1-0"]
[WhiteElo "2144"]
[BlackElo "2289"]
[TimeControl "300"]
[EndTime "17:26:21 PDT"]
[Termination "NAZRIZ1977 won by checkmate"]

1. d4 {[%clk 0:04:51.4]} 1... Nf6 {[%clk 0:04:57.7]} 2. Nc3 {[%clk 0:04:50.7]}
2... d5 {[%clk 0:04:56.1]} 3. Bf4 {[%clk 0:04:50]} 3... g6 {[%clk 0:04:53.1]} 4.
e3 {[%clk 0:04:48.8]} 4... Bg7 {[%clk 0:04:47.5]} 5. h4 {[%clk 0:04:48.2]} 5...
h5 {[%clk 0:04:43.2]} 6. Nf3 {[%clk 0:04:46.9]} 6... O-O {[%clk 0:04:41.1]} 7.
Be2 {[%clk 0:04:39.8]} 7... c5 {[%clk 0:04:39.9]} 8. Qd2 {[%clk 0:04:37.1]} 8...
cxd4 {[%clk 0:04:37.8]} 9. exd4 {[%clk 0:04:36.2]} 9... Nc6 {[%clk 0:04:31]} 10.
O-O-O {[%clk 0:04:34.3]} 10... Ne4 {[%clk 0:04:29.9]} 11. Nxe4 {[%clk
0:04:29.7]} 11... dxe4 {[%clk 0:04:28.2]} 12. Ne5 {[%clk 0:04:29.1]} 12... Nxe5
{[%clk 0:04:25.7]} 13. dxe5 {[%clk 0:04:23.8]} 13... Qb6 {[%clk 0:04:15.6]} 14.
Qd4 {[%clk 0:04:00.4]} 14... Qa5 {[%clk 0:04:03.2]} 15. Bc4 {[%clk 0:03:47.7]}
15... Bf5 {[%clk 0:03:53.6]} 16. Kb1 {[%clk 0:03:37.3]} 16... Rad8 {[%clk
0:03:48.3]} 17. Qe3 {[%clk 0:03:34.1]} 17... Bxe5 {[%clk 0:03:25.7]} 18. Bh6
{[%clk 0:03:28.5]} 18... Rxd1+ {[%clk 0:03:17.6]} 19. Rxd1 {[%clk 0:03:26.7]}
19... Rc8 {[%clk 0:03:11.2]} 20. Bb3 {[%clk 0:03:23.5]} 20... Qc7 {[%clk
0:02:47.3]} 21. Rd2 {[%clk 0:02:51.6]} 21... a5 {[%clk 0:02:42.6]} 22. a4 {[%clk
0:02:46.6]} 22... Bd6 {[%clk 0:02:27.4]} 23. f3 {[%clk 0:02:41.1]} 23... exf3
{[%clk 0:02:23.7]} 24. gxf3 {[%clk 0:02:40.1]} 24... Qc5 {[%clk 0:02:12.8]} 25.
Qe1 {[%clk 0:02:19.8]} 25... Qb4 {[%clk 0:02:09.1]} 26. Ka2 {[%clk 0:02:00.2]}
26... b5 {[%clk 0:02:00.7]} 27. c3 {[%clk 0:01:44.1]} 27... Qc5 {[%clk 0:01:51]}
28. Be3 {[%clk 0:01:38.5]} 28... Qc6 {[%clk 0:01:42.5]} 29. Qd1 {[%clk
0:01:37.2]} 29... bxa4 {[%clk 0:01:39.7]} 30. Bxa4 {[%clk 0:01:35.2]} 30... Qc4+
{[%clk 0:01:35.2]} 31. Bb3 {[%clk 0:01:32.5]} 31... Qxh4 {[%clk 0:01:33.2]} 32.
Rxd6 {[%clk 0:01:26.7]} 32... exd6 {[%clk 0:01:30.7]} 33. Qxd6 {[%clk
0:01:25.9]} 33... Rd8 {[%clk 0:01:14.4]} 34. Qe5 {[%clk 0:01:16.6]} 34... Kh7
{[%clk 0:01:07.8]} 35. Bd4 {[%clk 0:01:10.7]} 35... Rg8 {[%clk 0:01:04]} 36.
Bxf7 {[%clk 0:01:07]} 36... Qd8 {[%clk 0:00:57.2]} 37. Bxg8+ {[%clk 0:00:58.5]}
37... Qxg8+ {[%clk 0:00:55.6]} 38. b3 {[%clk 0:00:55.2]} 38... Qf7 {[%clk
0:00:52.1]} 39. Qb5 {[%clk 0:00:52.9]} 39... h4 {[%clk 0:00:50.3]} 40. Qb8
{[%clk 0:00:47.4]} 40... Kh6 {[%clk 0:00:46]} 41. Be3+ {[%clk 0:00:40]} 41...
Kg7 {[%clk 0:00:43.4]} 42. Bd4+ {[%clk 0:00:37.8]} 42... Kh6 {[%clk 0:00:42]}
43. Qh8+ {[%clk 0:00:31.2]} 43... Kg5 {[%clk 0:00:40.5]} 44. Be3# {[%clk
0:00:30.8]} 1-0

[Event "Live Chess"]
[Site "Chess.com"]
[Date "2024.06.02"]
[Round "-"]
[White "mychess51"]
[Black "oscalik"]
[Result "0-1"]
[WhiteElo "1757"]
[BlackElo "2281"]
[TimeControl "300"]
[EndTime "17:26:34 PDT"]
[Termination "oscalik won on time"]

1. d4 {[%clk 0:04:57.5]} 1... Nf6 {[%clk 0:04:58.6]} 2. Nf3 {[%clk 0:04:56]}
2... g6 {[%clk 0:04:56.9]} 3. g3 {[%clk 0:04:55.9]} 3... Bg7 {[%clk 0:04:56.2]}
4. Bg2 {[%clk 0:04:55.8]} 4... O-O {[%clk 0:04:55.5]} 5. O-O {[%clk 0:04:55.7]}
5... d6 {[%clk 0:04:54.9]} 6. c4 {[%clk 0:04:55.6]} 6... c5 {[%clk 0:04:53]} 7.
d5 {[%clk 0:04:54.3]} 7... e6 {[%clk 0:04:50.6]} 8. Nc3 {[%clk 0:04:51.7]} 8...
exd5 {[%clk 0:04:48.6]} 9. cxd5 {[%clk 0:04:50.5]} 9... Re8 {[%clk 0:04:47.9]}
10. Re1 {[%clk 0:04:48.3]} 10... a6 {[%clk 0:04:44.2]} 11. e4 {[%clk 0:04:47.5]}
11... b5 {[%clk 0:04:43.2]} 12. e5 {[%clk 0:04:24.3]} 12... Nfd7 {[%clk
0:04:29.5]} 13. e6 {[%clk 0:03:56.9]} 13... Ne5 {[%clk 0:04:19.6]} 14. Nxe5
{[%clk 0:03:52.5]} 14... Bxe5 {[%clk 0:04:18]} 15. exf7+ {[%clk 0:03:25.3]}
15... Kxf7 {[%clk 0:04:16.8]} 16. Ne4 {[%clk 0:03:16.8]} 16... Bf5 {[%clk
0:04:10.9]} 17. Ng5+ {[%clk 0:02:44.5]} 17... Kg7 {[%clk 0:04:04.6]} 18. Kh1
{[%clk 0:02:34.2]} 18... Ra7 {[%clk 0:03:57.8]} 19. Bh3 {[%clk 0:01:46]} 19...
Bxh3 {[%clk 0:03:53.4]} 20. Nxh3 {[%clk 0:01:44]} 20... Rae7 {[%clk 0:03:52.6]}
21. Ng5 {[%clk 0:01:30]} 21... Qc8 {[%clk 0:03:30.6]} 22. Ne6+ {[%clk
0:01:27.5]} 22... Rxe6 {[%clk 0:03:06.3]} 23. dxe6 {[%clk 0:01:25.4]} 23... Qb7+
{[%clk 0:03:06]} 24. Kg1 {[%clk 0:01:21.5]} 24... Rxe6 {[%clk 0:03:05.6]} 25.
Bf4 {[%clk 0:01:13.7]} 25... Nd7 {[%clk 0:02:55.8]} 26. Qg4 {[%clk 0:00:58.8]}
26... Rf6 {[%clk 0:02:49.4]} 27. Bg5 {[%clk 0:00:37.1]} 27... Rf7 {[%clk
0:02:42.6]} 28. Qh4 {[%clk 0:00:35.4]} 28... h5 {[%clk 0:02:36.5]} 29. Be3
{[%clk 0:00:33.9]} 29... Bf6 {[%clk 0:02:28.8]} 30. Qh3 {[%clk 0:00:30.5]} 30...
Ne5 {[%clk 0:02:26]} 31. Red1 {[%clk 0:00:20.7]} 31... Nc4 {[%clk 0:02:17.2]}
32. Qg2 {[%clk 0:00:16.6]} 32... Qxg2+ {[%clk 0:02:04.8]} 33. Kxg2 {[%clk
0:00:15]} 33... Bxb2 {[%clk 0:02:04.5]} 34. Rab1 {[%clk 0:00:13.4]} 34... Be5
{[%clk 0:02:01.6]} 35. Bf4 {[%clk 0:00:09.9]} 35... Bxf4 {[%clk 0:01:58.9]} 36.
gxf4 {[%clk 0:00:09.1]} 36... Rxf4 {[%clk 0:01:58.4]} 37. Re1 {[%clk 0:00:06.9]}
37... Rg4+ {[%clk 0:01:56.1]} 38. Kf1 {[%clk 0:00:04.6]} 38... Nd2+ {[%clk
0:01:53.6]} 39. Ke2 {[%clk 0:00:02.2]} 39... Nxb1 {[%clk 0:01:53.5]} 40. Rxb1
{[%clk 0:00:01.1]} 40... Re4+ {[%clk 0:01:52.6]} 41. Kf3 {[%clk 0:00:00.2]}
41... Re5 {[%clk 0:01:52.5]} 0-1